bitfinex-derivatives/quotes_ETHF0:USTF0_20251119
["timestamp","ask_amount","ask_price","bid_price","bid_amount"]
[1763581900325,0.1468,2888.4,2887.7,5.83431503]
[1763581900632,0.3932,2887.8,2887.7,3.2078]
[1763581900822,0.2464,2887.5,2887.4,0.00276929]
[1763581901820,0.80807,2887.5,2887.4,0.00276929]
[1763581902027,0.2464,2887.3,2887.2,0.00519957]
[1763581902221,0.1468,2887.8,2887.2,3.46399957]
[1763581902425,0.1468,2887.8,2887.3,3.2078]
[1763581902929,3.2078,2887.6,2887.3,0.00360661]
[1763581903125,0.80809,2887.4,2887.3,0.00360661]
[1763581903529,1.75909,2887.4,2887.3,0.00360661]
[1763581904031,0.80809,2887.4,2887.3,0.00360661]
[1763581904233,4.01909,2887.4,2887.3,0.00360661]
[1763581904432,0.1468,2887.0,2886.8,3.2078]
[1763581904927,0.56176,2887.1,2886.8,3.2078]
[1763581905130,0.2464,2886.9,2886.8,3.2078]
[1763581905525,0.2464,2886.9,2886.8,3.21079799]
[1763581905727,0.80819,2886.9,2886.8,3.21079799]
[1763581906831,4.18919,2886.9,2886.8,3.21079799]
[1763581907138,4.18919,2886.9,2886.8,0.00299799]
[1763581907728,0.80819,2886.9,2886.8,0.00299799]
[1763581907928,1.80619,2886.9,2886.8,0.00299799]
[1763581908230,0.80819,2886.9,2886.8,0.00299799]
[1763581908429,4.18919,2886.9,2886.8,0.00299799]
[1763581908937,4.18919,2886.9,2886.2,3.2078]
[1763581908938,0.2464,2886.3,2886.2,3.2078]
[1763581909737,0.1468,2886.5,2886.2,3.2078]
[1763581909939,0.76,2886.4,2886.2,3.21058332]
[1763581910132,0.76,2886.4,2886.1,0.00519957]
[1763581910133,0.8083,2886.3,2886.1,0.00519957]
[1763581910333,0.2464,2885.7,2885.6,3.2078]
[1763581911040,0.898,2885.7,2885.6,3.2078]
[1763581911241,0.70877,2886.0,2885.6,3.21148418]
[1763581911544,0.80842,2885.7,2885.6,3.21148418]
[1763581911842,3.381,2885.7,2885.6,3.21148418]
[1763581912938,4.18942,2885.7,2885.6,3.21148418]
[1763581913138,4.19042,2885.7,2885.6,3.21148418]
[1763581913343,4.19042,2885.7,2885.6,2.86348418]
[1763581914334,0.80842,2885.7,2885.6,2.86681704]
[1763581914538,4.19042,2885.7,2885.6,2.86681704]
[1763581915045,0.1468,2886.0,2885.6,2.86681704]
[1763581915245,0.56194,2886.1,2885.6,2.86681704]
[1763581915446,0.56194,2886.1,2885.9,3.2078]
[1763581915644,3.31,2886.0,2885.9,3.2078]
[1763581915945,0.15111074,2886.5,2886.0,0.251]
[1763581916139,0.15111074,2886.5,2885.9,3.2078]
[1763581916140,0.2464,2886.3,2885.9,3.2078]
[1763581916843,0.00431074,2886.5,2886.4,0.251]
[1763581917647,0.00431074,2886.5,2886.2,3.2078]
[1763581918141,0.00431074,2886.5,2886.4,0.251]
[1763581919651,0.00431074,2886.5,2886.2,3.2078]
[1763581919652,0.15111074,2886.5,2886.2,3.2078]
[1763581920146,0.2464,2886.3,2886.2,3.2078]
[1763581920346,1.2344,2886.3,2886.2,3.2078]
[1763581920644,0.3932,2886.0,2885.9,3.2078]
[1763581920844,0.1468,2886.0,2885.9,3.2078]
[1763581921242,0.3932,2886.0,2885.9,3.2078]
[1763581921638,0.56192,2886.2,2885.9,3.2078]
[1763581921850,3.387,2886.1,2885.9,3.2078]
[1763581922238,0.56192,2886.2,2886.0,0.251]
[1763581922642,0.885,2886.1,2885.9,3.2078]
[1763581923247,0.3999,2886.0,2885.9,3.2078]
[1763581924047,0.1528,2886.0,2885.9,3.2078]
[1763581924243,1.2619,2886.0,2885.9,3.2078]
[1763581924545,1.2619,2886.0,2885.6,3.21113286]
[1763581924746,0.2471,2885.7,2885.6,3.21113286]
[1763581924944,0.3999,2885.5,2885.4,0.00519957]
[1763581925249,0.96196,2885.5,2885.4,0.00519957]
[1763581925752,0.2471,2885.1,2885.0,3.2078]
[1763581925956,0.56212,2885.2,2885.0,3.21229152]
[1763581926250,3.3606,2885.5,2885.0,3.21229152]
[1763581926251,0.80924,2885.1,2885.0,3.21229152]
[1763581926447,3.85624,2885.1,2885.0,0.00449152]
[1763581926652,0.1528,2885.5,2885.0,3.21229152]
[1763581926846,3.386,2885.4,2885.0,3.21229152]
[1763581927055,0.2471,2885.1,2885.0,3.21229152]
[1763581927356,0.56208,2885.4,2885.0,3.21229152]
[1763581927546,0.56208,2885.4,2885.3,3.2078]
[1763581927851,3.94908,2885.4,2885.0,3.21229152]
[1763581928054,3.387,2885.3,2885.0,3.21229152]
[1763581928253,0.56208,2885.4,2885.0,3.21229152]
[1763581928441,0.1528,2886.0,2885.4,0.2439]
[1763581928645,0.1528,2886.0,2885.6,3.2078]
[1763581928646,3.5398,2886.0,2885.6,3.2078]
[1763581928846,0.2471,2885.7,2885.6,3.2078]
[1763581929054,4.19612,2885.7,2885.2,3.2078]
[1763581929546,4.19612,2885.7,2885.0,0.00449152]
[1763581929547,0.1528,2886.0,2885.6,3.2078]
[1763581929747,0.1528,2886.0,2885.9,3.2078]
[1763581930155,3.5408,2886.0,2885.9,3.2078]
[1763581930352,3.5408,2886.0,2885.6,3.2078]
[1763581931052,3.388,2885.9,2885.8,0.2439]
[1763581931248,3.35891074,2886.5,2885.2,2.62651503]
[1763581931249,0.15111074,2886.5,2885.9,3.2078]
[1763581931454,3.388,2886.4,2885.9,3.2078]
[1763581932054,0.56193,2886.2,2885.9,3.2078]
[1763581932255,0.56193,2886.2,2885.6,3.2078]
[1763581933050,3.388,2886.1,2885.9,3.2078]
[1763581933455,0.1528,2886.0,2885.9,3.2078]
[1763581933853,0.3999,2886.0,2885.9,3.2078]
[1763581934051,0.3999,2886.0,2885.6,3.2078]
[1763581934255,0.2471,2885.7,2885.6,3.2078]
[1763581934560,0.1528,2886.0,2885.0,0.00449152]
[1763581934561,0.2471,2885.3,2885.2,3.2078]
[1763581934857,2.081,2885.9,2885.4,0.2439]
[1763581935057,2.081,2885.9,2885.2,3.2078]
[1763581936451,3.39,2885.8,2885.5,3.2078]
[1763581936662,3.389,2885.9,2885.5,3.2078]
[1763581936856,3.2078,2886.4,2885.5,3.2078]
[1763581937061,0.71298074,2886.5,2886.2,3.2078]
[1763581937259,0.71298074,2886.5,2885.9,3.2078]
[1763581937455,3.39,2886.4,2885.9,3.2078]
[1763581938462,3.39,2886.4,2886.2,3.2078]
[1763581938855,0.71298074,2886.5,2886.2,3.2078]
[1763581939064,0.00431074,2886.5,2886.4,0.2439]
[1763581939757,0.00431074,2886.5,2886.4,1.49085184]
[1763581940059,0.00431074,2886.5,2886.4,0.2439]
[1763581940657,0.00431074,2886.5,2886.2,3.2078]
[1763581940658,0.2471,2886.4,2886.2,3.2078]
[1763581940864,0.2471,2886.3,2885.9,3.2078]
[1763581941161,1.94789,2886.4,2886.2,3.2078]
[1763581942062,1.94789,2886.4,2885.9,4.45475184]
[1763581942458,0.56189,2886.4,2885.9,4.45475184]
[1763581942659,0.00431074,2886.5,2886.4,0.2439]
[1763581943164,0.00431074,2886.5,2886.3,3.2078]
[1763581943457,0.00431074,2886.5,2886.4,2.87041503]
[1763581943662,0.00519957,2886.6,2886.5,0.2439]
[1763581943859,0.00519957,2886.6,2886.5,1.48639795]
[1763581944453,0.1528,2887.5,2886.5,1.48639795]
[1763581944755,0.56171,2887.3,2886.9,3.2078]
[1763581945054,0.15587797,2887.5,2886.9,3.2078]
[1763581945249,0.00307797,2887.5,2887.4,3.2078]
[1763581945452,0.39517797,2887.5,2887.4,0.00291316]
[1763581945654,3.60297797,2887.5,2887.4,0.00291316]
[1763581946051,0.5617,2887.4,2886.8,3.2078]
[1763581946252,0.2486,2886.6,2886.5,1.24249795]
[1763581946453,0.1435,2886.5,2886.3,0.00519957]
[1763581946653,1.436,2886.8,2886.4,3.4482]
[1763581947056,1.436,2886.8,2886.4,3.45240892]
[1763581947461,3.5325,2887.0,2886.4,3.45240892]
[1763581948560,0.1435,2887.0,2886.4,3.45240892]
[1763581948762,3.5315,2887.0,2886.4,3.45240892]
[1763581948960,0.14657797,2887.5,2886.9,0.2404]
[1763581948961,3.35437797,2887.5,2886.9,0.2404]
[1763581949267,3.388,2887.4,2886.9,0.2404]
[1763581949469,3.91604797,2887.5,2886.9,0.2404]
[1763581949769,1.689,2887.4,2886.9,0.2404]
[1763581949954,3.91604797,2887.5,2887.3,3.2078]
[1763581949955,0.14657797,2887.5,2887.3,3.2078]
[1763581950154,0.00307797,2887.5,2887.4,0.2404]
[1763581951262,0.00307797,2887.5,2887.4,2.51170191]
[1763581951462,0.00307797,2887.5,2887.4,0.2404]
[1763581951664,0.00307797,2887.5,2887.3,3.2078]
[1763581951665,0.14657797,2887.5,2887.3,3.2078]
[1763581951967,0.00307797,2887.5,2887.4,0.2402]
[1763581953370,0.00307797,2887.5,2887.3,3.2078]
[1763581953762,0.00307797,2887.5,2887.4,0.2402]
[1763581954469,0.00307797,2887.5,2887.4,2.51150191]
[1763581955862,0.00519957,2887.7,2887.6,0.2402]
[1763581956070,0.5614,2888.9,2888.5,0.2402]
[1763581956372,0.3482,2888.8,2888.5,5.71930191]
[1763581956577,0.3482,2888.8,2888.7,0.2402]
[1763581956969,0.35126648,2888.8,2888.7,0.24264325]
[1763581957168,0.00306648,2888.8,2888.7,0.24264325]
[1763581963263,0.00306648,2888.8,2888.7,0.00244325]
[1763581963473,0.24196648,2888.8,2888.7,0.00244325]
[1763581963779,0.00306648,2888.8,2888.7,0.24264325]
[1763581964768,0.24196648,2888.8,2888.7,0.00244325]
[1763581964967,0.80338648,2888.8,2888.7,0.00244325]
[1763581965272,0.80338648,2888.8,2887.9,2.27130191]
[1763581965273,0.2389,2888.3,2888.2,3.2078]
[1763581965467,0.1528,2888.5,2887.9,3.2078]
[1763581965666,3.2078,2888.0,2887.2,3.2078]
[1763581965869,0.3093,2887.5,2887.2,3.2078]
[1763581966273,0.3093,2887.5,2887.2,3.21141826]
[1763581966680,0.80061,2887.3,2887.2,3.21141826]
[1763581967081,0.80061,2887.3,2887.2,0.00361826]
[1763581967878,0.80061,2887.3,2886.5,2.36160191]
[1763581967879,0.2389,2886.9,2886.5,0.0903]
[1763581968085,3.2078,2886.7,2886.2,3.2078]
[1763581968279,3.2078,2887.1,2886.2,3.2078]
[1763581968479,3.2078,2886.8,2886.2,3.2078]
[1763581968974,3.2105143,2886.8,2886.2,3.21593624]
[1763581969176,3.7723243,2886.8,2886.2,3.21593624]
[1763581969882,0.2389,2886.3,2886.2,0.00813624]
[1763581970384,0.8008,2886.3,2886.2,0.00813624]
[1763581970982,0.56199,2885.9,2885.3,3.2078]
[1763581971385,3.2901,2886.0,2885.3,3.2078]
[1763581972086,3.38719957,2885.9,2885.4,0.00346642]
[1763581972481,0.56203,2885.7,2885.4,0.00346642]
[1763581972678,3.38719957,2885.9,2885.4,0.00346642]
[1763581972679,0.2389,2885.5,2885.4,0.00346642]
[1763581973285,4.09106,2885.5,2885.4,0.00346642]
[1763581973685,7.39076,2885.5,2885.4,0.00346642]
[1763581974186,7.39076,2885.5,2885.4,0.24366642]
[1763581974187,3.2078,2885.5,2885.4,0.24366642]
[1763581974378,3.2078,2885.5,2885.4,0.00346642]
[1763581974584,3.4467,2885.5,2885.4,0.00346642]
[1763581975689,4.4048,2885.5,2885.4,0.24366642]
[1763581976188,0.56205,2885.6,2885.4,0.24366642]
[1763581976386,3.2078,2885.8,2885.7,0.2402]
[1763581976583,3.21299957,2885.9,2885.4,0.00346642]
[1763581977086,3.2078,2885.7,2885.4,0.00346642]
[1763581977291,0.2389,2885.5,2885.4,0.00346642]
[1763581977487,0.00519957,2885.9,2885.8,0.2402]
[1763581982596,3.2078,2886.5,2886.4,0.2464]
[1763581982888,4.01137,2886.5,2886.0,0.1541]
[1763581983397,4.01137,2886.5,2886.4,0.2464]
[1763581983398,3.2078,2886.5,2886.4,0.2464]
[1763581983791,0.00519957,2886.7,2886.4,0.2464]
[1763581983987,0.00519957,2886.7,2886.6,0.2464]
[1763581984992,3.2078,2887.2,2886.6,0.2464]
[1763581984993,3.2078,2887.2,2887.1,0.2464]
[1763581985793,3.2078,2887.2,2887.0,0.1541]
[1763581985993,3.21082478,2887.2,2887.0,0.1541]
[1763581986895,3.21082478,2887.2,2886.8,0.00519957]
[1763581987296,4.01129,2886.9,2886.8,0.00519957]
[1763581988894,5.56329,2886.9,2886.8,0.00519957]
[1763581989101,7.39429,2886.9,2886.8,0.00519957]
[1763581989304,4.01129,2886.9,2886.8,0.00519957]
[1763581989701,5.27429,2886.9,2886.8,0.00519957]
[1763581990607,0.2417,2886.3,2886.2,3.2078]
[1763581990803,0.8036,2886.3,2886.2,3.2078]
[1763581991200,0.2417,2885.9,2885.5,3.3607]
[1763581992203,1.45594,2886.2,2885.5,3.3607]
[1763581993201,3.94394,2886.2,2885.5,3.3607]
[1763581993807,0.56194,2886.1,2885.5,3.3607]
[1763581994211,0.56199,2885.9,2885.5,3.3607]
[1763581994906,0.2417,2885.5,2885.4,0.00519957]
[1763581995203,4.01156,2885.5,2885.4,0.00519957]
[1763581995409,3.26676,2885.5,2885.4,0.00519957]
[1763581996006,4.18576,2885.5,2885.4,0.00519957]
[1763581997910,4.28126,2885.5,2885.4,0.00519957]
[1763581998111,0.80378,2885.4,2885.3,0.00315658]
[1763581999025,4.18578,2885.4,2885.3,0.00315658]
[1763581999408,0.80378,2885.4,2885.3,0.00315658]
[1763581999713,3.17978,2885.4,2885.3,0.00315658]
[1763581999919,4.18478,2885.4,2885.3,0.00315658]
[1763582000118,0.80378,2885.4,2885.3,0.00315658]
[1763582000416,2.32078,2885.4,2885.3,0.00315658]
[1763582002027,0.80378,2885.4,2885.3,0.00315658]
[1763582002215,3.13778,2885.4,2885.3,0.00315658]
[1763582002909,0.80378,2885.4,2885.3,0.00315658]
[1763582003109,2.55837403,2885.6,2885.3,0.24955658]
[1763582003315,0.00519957,2885.7,2885.6,0.2464]
[1763582003515,0.56185,2886.6,2885.6,0.2464]
[1763582003718,3.2078,2886.4,2885.7,3.2078]
[1763582003922,3.76969,2886.4,2885.7,3.2078]
[1763582004119,3.76969,2886.4,2885.5,0.1541]
[1763582004120,0.56197,2886.0,2885.5,0.1541]
[1763582004516,0.56716957,2886.0,2885.5,0.1541]
[1763582005320,3.2078,2885.8,2885.5,0.1541]
[1763582005927,0.56716957,2886.0,2885.5,0.1541]
[1763582006117,0.56716957,2886.0,2885.9,0.2464]
[1763582006118,0.00519957,2886.0,2885.9,0.2464]
[1763582007521,0.56187,2886.5,2886.4,0.2337]
[1763582007917,3.77256478,2887.2,2886.5,0.1514]
[1763582008519,0.00519957,2887.1,2886.6,0.00519957]
[1763582010430,0.00519957,2887.1,2886.7,3.2078]
[1763582010735,0.56695957,2887.1,2886.6,0.00519957]
[1763582010935,0.2431,2886.7,2886.6,0.00519957]
[1763582012329,0.80492,2886.7,2886.6,0.00519957]
[1763582013229,0.5619,2886.4,2885.7,3.2078]
[1763582013430,0.1406,2887.0,2885.7,3.2078]
[1763582013431,3.2078,2886.2,2885.7,3.2078]
[1763582013626,0.5619,2886.3,2885.7,3.2078]
[1763582014226,0.5619,2886.3,2885.7,3.21299957]
[1763582014820,0.5619,2886.3,2885.7,0.00519957]
[1763582015227,0.5619,2886.3,2885.7,3.21299957]
[1763582015531,0.56181,2886.8,2886.2,0.2449]
[1763582015732,0.56183,2886.7,2886.2,0.2449]
[1763582015931,0.56183,2886.7,2886.3,3.2078]
[1763582016333,0.56183,2886.7,2886.6,0.2449]
[1763582016735,0.00519957,2887.1,2887.0,0.3907]
[1763582016937,0.00519957,2887.1,2887.0,3.5985]
[1763582018432,0.00519957,2887.1,2887.0,0.3907]
[1763582019035,0.00519957,2887.1,2886.5,0.1458]
[1763582019036,0.2464,2886.8,2886.5,0.1458]
[1763582019727,0.2464,2886.8,2886.3,3.2078]
[1763582019933,0.80821,2886.8,2886.3,3.2078]
[1763582022137,0.56182,2886.7,2886.3,3.2078]
[1763582023039,3.2078,2886.9,2886.3,3.2078]
[1763582023040,0.2464,2886.4,2886.3,3.2078]
[1763582023230,0.80828,2886.4,2885.8,3.2078]
[1763582024942,0.56188,2886.4,2886.3,0.2449]
[1763582025342,0.80828,2886.4,2886.0,0.1458]
[1763582025939,1.37064508,2888.0,2886.6,3.2078]
[1763582026136,1.37064508,2888.0,2886.2,1.87042776]
[1763582026137,0.1516,2888.0,2887.9,3.2078]
[1763582026440,0.398,2888.0,2887.9,3.2078]
[1763582027039,0.40105478,2888.0,2887.9,3.21026637]
[1763582027239,0.15465478,2888.0,2887.9,3.21026637]
[1763582030555,0.00519957,2888.2,2887.9,3.21026637]
[1763582031650,0.00800062,2888.2,2887.9,3.21026637]
[1763582031843,0.1467,2888.0,2887.9,3.21026637]
[1763582034344,0.00800062,2888.2,2887.9,3.21026637]
[1763582035146,0.36086062,2888.6,2887.9,3.21026637]
[1763582035353,0.1467,2888.0,2887.9,0.00246637]
[1763582035650,0.1467,2888.0,2887.9,3.21026637]
[1763582036049,0.39712255,2888.0,2887.9,3.21026637]
[1763582036944,0.15072255,2888.0,2887.9,3.21026637]
[1763582038044,3.2078,2888.9,2887.9,3.21026637]
[1763582038253,0.1467,2889.5,2888.8,7.07384965]
[1763582038448,0.1467,2889.5,2889.4,3.2078]
[1763582039057,0.15099381,2889.5,2889.4,3.2078]
[1763582039554,0.39739381,2889.5,2889.4,3.2078]
[1763582040257,6.95867381,2889.5,2889.4,2.4365]
[1763582040457,6.95867381,2889.5,2889.2,0.00519957]
[1763582040458,0.2464,2889.3,2889.2,0.00519957]
[1763582040651,6.15099381,2889.5,2889.2,0.00519957]
[1763582040652,0.15099381,2889.5,2889.2,0.00519957]
[1763582040847,0.1467,2889.0,2888.7,3.2078]
[1763582041056,0.2464,2888.8,2888.7,3.2078]
[1763582041252,0.2464,2888.4,2887.9,3.21026637]
[1763582041558,3.2078,2888.0,2887.9,0.24736637]
[1763582041752,3.76932,2888.3,2887.9,0.24736637]
[1763582041951,0.56162,2887.8,2887.0,0.1458]
[1763582042149,3.2078,2887.7,2887.0,0.1458]
[1763582042954,3.2078,2887.7,2887.1,0.00519957]
[1763582043151,3.2078,2887.6,2887.1,0.00519957]
[1763582043547,0.56164,2887.7,2887.2,3.2078]
[1763582043751,3.2078,2887.6,2887.1,0.00519957]
[1763582043960,0.56164,2887.7,2887.1,0.00519957]
[1763582044155,0.3562,2887.2,2887.1,0.00519957]
[1763582044361,0.35956325,2887.2,2887.1,0.00519957]
[1763582044750,0.56506325,2887.2,2887.1,0.00519957]
[1763582044963,1.12679325,2887.2,2887.1,0.00519957]
[1763582046554,0.35956325,2887.2,2887.1,0.00519957]
[1763582046756,0.00336325,2887.2,2887.1,0.00519957]
[1763582046955,0.35956325,2887.2,2887.1,0.00519957]
[1763582047758,0.00336325,2887.2,2887.1,0.35959957]
[1763582047958,0.56506325,2887.2,2887.1,0.00519957]
[1763582048956,1.12679325,2887.2,2887.1,0.00519957]
[1763582049155,0.00336325,2887.2,2887.1,0.35959957]
[1763582049467,0.00519957,2888.4,2887.4,0.3544]
[1763582049659,0.00519957,2888.4,2887.9,3.2078]
[1763582050257,0.00887275,2888.4,2888.3,0.3544]
[1763582052763,3.2078,2889.1,2888.4,0.2027]
[1763582052964,3.2078,2889.1,2888.5,3.2078]
[1763582053759,0.2055,2889.6,2888.4,0.2027]
[1763582053760,4.67754078,2890.0,2889.0,0.5571]
[1763582054061,0.00519957,2889.1,2889.0,3.7649]
[1763582054466,3.21299957,2889.1,2889.0,0.3544]
[1763582054667,0.00519957,2889.1,2889.0,0.3544]
[1763582055063,3.2078,2889.7,2889.0,3.7649]
[1763582055266,0.00428811,2890.0,2889.6,0.3544]
[1763582055468,0.00428811,2890.0,2889.6,0.35773314]
[1763582055665,0.00428811,2890.0,2889.6,3.76823314]
[1763582056165,0.00428811,2890.0,2889.9,3.5622]
[1763582059065,1.11405078,2891.4,2889.9,3.5622]
[1763582059066,0.2055,2891.4,2890.7,0.3544]
[1763582059261,0.2055,2891.4,2890.9,3.2078]
[1763582059461,0.56098,2891.1,2890.6,3.2078]
[1763582059667,3.564,2890.7,2890.1,3.2078]
[1763582059869,0.3562,2890.7,2890.1,3.2078]
[1763582060068,0.36518743,2890.7,2890.1,3.2129904]
[1763582061174,3.57298743,2890.7,2890.1,3.2129904]
[1763582061680,0.00898743,2890.7,2890.6,3.5622]
[1763582062578,0.00516899,2890.7,2890.6,3.5622]
[1763582062874,0.2055,2892.0,2891.5,0.3544]
[1763582063080,3.2078,2891.9,2891.4,3.2078]
[1763582063268,0.2055,2892.0,2891.4,3.2078]
[1763582063678,0.20947476,2892.0,2891.4,3.2129904]
[1763582064076,0.3562,2891.5,2891.4,3.2129904]
[1763582064277,0.3562,2891.5,2891.4,0.0051904]
[1763582064672,3.564,2891.5,2891.4,0.0051904]
[1763582065579,0.3562,2891.5,2891.4,0.0051904]
[1763582065876,3.399,2891.8,2891.4,0.0051904]
[1763582066076,3.2078,2891.9,2891.4,0.0051904]
[1763582066379,6.6068,2891.9,2891.4,0.0051904]
[1763582066775,3.2078,2891.9,2891.4,0.0051904]
[1763582066977,0.3909,2891.5,2891.4,0.0051904]
[1763582069477,4.15959,2891.5,2891.4,0.0051904]
[1763582069681,0.3909,2890.5,2890.4,3.2078]
[1763582069872,0.3909,2890.1,2889.7,3.2078]
[1763582070379,0.3909,2889.8,2889.7,3.2078]
[1763582070683,0.3909,2889.7,2889.6,0.00333314]
[1763582072878,3.5987,2889.7,2889.6,0.00333314]
[1763582073582,0.3909,2889.7,2889.6,0.00333314]
[1763582075178,3.77287133,2889.8,2889.5,0.0051904]
[1763582075179,1.13496,2889.6,2889.5,0.0051904]
[1763582075381,1.13496,2889.6,2889.0,3.2078]
[1763582075382,0.3589,2889.1,2889.0,3.2078]
[1763582075683,0.3589,2888.8,2888.7,3.2078]
[1763582076083,0.3589,2888.8,2888.4,3.2078]
[1763582076282,0.3589,2888.8,2888.4,3.21163109]
[1763582077378,4.86214,2889.2,2888.4,3.40023109]
[1763582077688,0.56134,2889.2,2888.7,3.2078]
[1763582079886,0.3589,2888.8,2888.4,3.21163109]
[1763582080981,0.3589,2888.8,2888.7,3.2078]
[1763582081182,0.56134,2889.2,2888.7,3.2078]
[1763582081388,2.01834,2889.2,2888.7,3.2078]
[1763582081591,0.56134,2889.2,2888.7,3.2078]
[1763582082393,0.2148,2889.6,2889.1,3.2078]
[1763582084393,0.56508133,2889.8,2889.1,3.2078]
[1763582084581,0.2148,2889.5,2889.1,3.2078]
[1763582084883,0.00384133,2889.8,2889.7,0.3766]
[1763582085090,0.00384133,2889.8,2889.7,3.5844]
[1763582087190,0.00384133,2889.8,2889.2,3.2078]
[1763582087489,0.00384133,2889.8,2889.7,0.3766]
[1763582088094,3.76872,2891.4,2890.7,0.3766]
[1763582088286,0.2148,2891.0,2890.3,3.2078]
[1763582088883,0.3589,2890.4,2890.0,3.2078]
[1763582089088,0.3615431,2890.4,2890.0,0.00328255]
[1763582089295,0.3589,2890.1,2890.0,0.00328255]
[1763582090194,0.5637531,2890.4,2890.0,0.00328255]
[1763582090692,0.3589,2890.1,2890.0,0.00328255]
[1763582092799,4.12786,2890.1,2890.0,0.00328255]
[1763582094697,0.5737,2889.5,2889.1,3.2078]
[1763582094891,0.3589,2889.2,2889.1,3.2078]
[1763582095595,0.3589,2889.2,2889.1,3.2113509]
[1763582095794,1.13167379,2890.0,2889.1,3.2113509]
[1763582095795,3.2078,2890.1,2889.6,0.3766]
[1763582096096,0.2148,2890.0,2889.6,0.3766]
[1763582096398,0.3589,2889.5,2889.4,3.2078]
[1763582096600,0.3589,2889.5,2889.1,0.0035509]
[1763582097297,1.581,2889.7,2889.4,3.5844]
[1763582097498,1.581,2889.7,2889.4,0.3766]
[1763582097699,0.56124,2889.8,2889.4,0.3766]
[1763582097905,3.96724,2889.8,2889.4,0.3766]
[1763582098095,3.96724,2889.8,2889.1,3.2113509]
[1763582098293,0.56124,2889.8,2889.1,3.2113509]
[1763582098606,2.13524,2889.8,2889.1,3.2113509]
[1763582098995,0.56124,2889.8,2889.4,3.2078]
[1763582099201,3.96724,2889.8,2889.4,3.2078]
[1763582099402,0.3589,2889.5,2889.1,3.2113509]
[1763582099702,0.3589,2889.5,2889.4,3.2078]
[1763582099895,0.3589,2889.5,2889.1,3.2113509]
[1763582100299,0.5737,2889.5,2889.1,3.2113509]
[1763582101096,0.2148,2890.0,2889.1,3.2113509]
[1763582101097,0.2148,2890.0,2889.4,0.3766]
[1763582101304,1.21904508,2890.3,2889.7,0.3766]
[1763582101305,1.47800379,2890.3,2889.7,0.3766]
[1763582101502,0.3589,2890.1,2889.7,3.2078]
[1763582101706,0.0026431,2890.4,2890.0,3.5844]
[1763582101907,0.3258,2889.8,2889.7,3.2078]
[1763582102102,0.3258,2889.8,2889.3,3.2078]
[1763582102305,0.56113,2890.3,2889.7,0.3509]
[1763582102505,0.0026431,2890.4,2889.7,0.3509]
[1763582102506,0.0026431,2890.4,2889.7,3.5587]
[1763582102702,0.0026431,2890.4,2889.9,3.2078]
[1763582103000,0.3258,2890.0,2889.9,3.2078]
[1763582103203,0.0026431,2890.4,2889.9,3.5587]
[1763582103406,2.3336431,2890.4,2889.9,3.5587]
[1763582103710,0.3258,2890.0,2889.9,3.2078]
[1763582104305,2.3336431,2890.4,2889.9,3.5587]
[1763582104502,0.0026431,2890.4,2889.9,3.5587]
[1763582104904,0.0026431,2890.4,2889.5,1.4308358]
[1763582104905,0.0026431,2890.4,2890.3,0.3509]
[1763582106304,5.48573,2891.3,2890.4,0.3509]
[1763582106305,0.56093,2891.3,2890.4,0.3509]
[1763582106504,1.4798,2891.5,2890.6,3.2078]
[1763582107101,3.2078,2891.3,2890.6,3.2078]
[1763582107306,3.21044839,2891.3,2890.6,3.2078]
[1763582107609,3.2078,2891.0,2890.7,0.0051904]
[1763582107807,0.0051904,2891.2,2890.7,0.0051904]
[1763582108208,3.2078,2891.0,2890.7,0.0051904]
[1763582108407,2.406,2891.1,2890.7,0.0051904]
[1763582108606,2.406,2891.1,2890.7,3.2129904]
[1763582108810,3.4081904,2891.2,2890.7,3.2129904]
[1763582109004,0.0051904,2891.2,2890.7,3.2129904]
[1763582109503,0.0051904,2891.2,2891.1,3.5587]
[1763582110108,0.0051904,2891.2,2891.1,0.3509]
[1763582110707,0.0051904,2891.2,2890.7,0.0051904]
[1763582110708,0.3258,2890.8,2890.7,0.0051904]
[1763582111310,0.56098,2891.1,2890.7,0.0051904]
[1763582111311,2.90598,2891.1,2890.7,3.2129904]
[1763582111510,0.1976,2891.0,2890.7,0.0051904]
[1763582111908,3.96298,2891.1,2890.7,3.2129904]
[1763582112104,0.3258,2890.8,2890.7,3.2129904]
[1763582112309,0.3258,2890.8,2890.7,0.0051904]
[1763582114003,0.1976,2891.0,2890.7,0.3560904]
[1763582114209,0.56098,2891.1,2890.7,0.3560904]
[1763582114708,0.0051904,2891.2,2890.7,0.3560904]
[1763582115107,0.0051904,2891.2,2890.8,3.2078]
[1763582116112,3.4051904,2891.2,2890.7,0.0051904]
[1763582116615,3.2078,2891.1,2890.7,0.0051904]
[1763582116820,0.3258,2890.8,2890.7,0.0051904]
[1763582117120,0.5661504,2891.2,2890.7,3.5638904]
[1763582117322,2.41,2891.1,2890.7,3.5638904]
[1763582117517,3.399,2891.1,2891.0,3.2078]
[1763582117722,3.7248,2891.1,2890.7,3.2129904]
[1763582118414,0.1976,2891.0,2890.7,3.2129904]
[1763582119219,3.5966,2891.0,2890.7,3.2129904]
[1763582119416,0.3258,2890.8,2890.7,3.2129904]
[1763582119722,0.3258,2890.4,2890.0,3.2078]
[1763582119909,0.3258,2890.1,2889.7,3.2078]
[1763582120222,0.1976,2890.0,2889.7,3.2078]
[1763582120409,0.3258,2889.8,2889.7,3.2078]
[1763582121617,3.5956,2890.0,2889.7,3.2078]
[1763582122318,3.5956,2890.0,2889.5,0.0051904]
[1763582122319,0.3258,2889.8,2889.5,0.0051904]
[1763582122812,0.3258,2889.6,2889.5,0.0051904]
[1763582123322,3.5956,2890.0,2889.5,0.3560904]
[1763582123618,0.3258,2889.6,2889.5,0.0051904]
[1763582123813,0.3258,2889.6,2889.1,0.0035509]
[1763582124018,0.3258,2889.2,2889.1,0.0035509]
[1763582124214,0.32842387,2889.2,2889.1,0.0035509]
[1763582125827,3.53622387,2889.2,2889.1,0.0035509]
[1763582126323,0.32842387,2889.2,2889.1,0.0035509]
[1763582127322,0.497,2889.0,2888.9,0.0051904]